[Event "Titled Tuesday Blitz April 05 Early 2022"]
[White "Petrovic, Aleksa"]
[Black "Alboredo, Julia"]
[WhiteFideId "967629"]
[BlackFideId "2124807"]
[WhiteElo "2198"]
[BlackElo "2041"]
[Result "1-0"]
[Round "07"]
[TimeControl "180+1"]
[Date "2022.04.05"]
[WhiteClock "0:00:04"]
[BlackClock "0:00:02"]

1. d4 {[%clk 0:03:00]}  Nf6 {[%clk 0:02:59]} 2. c4 {[%clk 0:03:00]}  g6 {[%clk 0:02:58]} 3. Nc3 {[%clk 0:02:59]}  Bg7 {[%clk 0:02:58]} 4. e4 {[%clk 0:02:58]}  d6 {[%clk 0:02:57]} 5. Nf3 {[%clk 0:02:55]}  O-O {[%clk 0:02:58]} 6. Be2 {[%clk 0:02:55]}  e5 {[%clk 0:02:58]} 7. Be3 {[%clk 0:02:46]}  Ng4 {[%clk 0:02:49]} 8. Bg5 {[%clk 0:02:45]}  f6 {[%clk 0:02:49]} 9. Bh4 {[%clk 0:02:45]}  Nc6 {[%clk 0:02:35]} 10. d5 {[%clk 0:02:43]}  Ne7 {[%clk 0:02:34]} 11. Nd2 {[%clk 0:02:43]}  Nh6 {[%clk 0:02:32]} 12. g4 {[%clk 0:02:42]}  f5 {[%clk 0:02:13]} 13. g5 {[%clk 0:02:26]}  Nf7 {[%clk 0:02:09]} 14. f3 {[%clk 0:02:18]}  c6 {[%clk 0:01:41]} 15. Qb3 {[%clk 0:02:11]}  Rb8 {[%clk 0:01:33]} 16. Qa3 {[%clk 0:02:09]}  a6 {[%clk 0:01:28]} 17. Rg1 {[%clk 0:01:22]}  b5 {[%clk 0:01:24]} 18. b4 {[%clk 0:01:22]}  Qb6 {[%clk 0:01:09]} 19. Bf2 {[%clk 0:01:20]}  Qb7 {[%clk 0:01:03]} 20. dxc6 {[%clk 0:01:13]}  Nxc6 {[%clk 0:00:56]} 21. cxb5 {[%clk 0:01:07]}  axb5 {[%clk 0:00:56]} 22. Nxb5 {[%clk 0:00:53]}  Nd4 {[%clk 0:00:44]} 23. Nxd4 {[%clk 0:00:48]}  exd4 {[%clk 0:00:45]} 24. Rb1 {[%clk 0:00:37]}  Ne5 {[%clk 0:00:43]} 25. Bxd4 {[%clk 0:00:33]}  fxe4 {[%clk 0:00:37]} 26. Nxe4 {[%clk 0:00:29]}  Bf5 {[%clk 0:00:19]} 27. Qb3+ {[%clk 0:00:22]}  Kh8 {[%clk 0:00:19]} 28. Nxd6 {[%clk 0:00:20]}  Qd7 {[%clk 0:00:09]} 29. Nxf5 {[%clk 0:00:18]}  Qxf5 {[%clk 0:00:10]} 30. b5 {[%clk 0:00:14]}  Rfe8 {[%clk 0:00:10]} 31. Kf1 {[%clk 0:00:13]}  Nxf3 {[%clk 0:00:06]} 32. Bxg7+ {[%clk 0:00:12]}  Kxg7 {[%clk 0:00:05]} 33. Qxf3 {[%clk 0:00:13]}  Qxb1+ {[%clk 0:00:05]} 34. Kg2 {[%clk 0:00:09]}  Qb4 {[%clk 0:00:05]} 35. Rd1 {[%clk 0:00:07]}  Qe7 {[%clk 0:00:06]} 36. Rd2 {[%clk 0:00:04]}  Qe4 {[%clk 0:00:06]} 37. Qxe4 {[%clk 0:00:04]}  Rxe4 {[%clk 0:00:07]} 38. Rb2 {[%clk 0:00:04]}  Re7 {[%clk 0:00:07]} 39. a4 {[%clk 0:00:03]}  Re5 {[%clk 0:00:07]} 40. b6 {[%clk 0:00:02]}  Rxg5+ {[%clk 0:00:08]} 41. Kf3 {[%clk 0:00:01]}  Ra5 {[%clk 0:00:09]} 42. Bb5 {[%clk 0:00:01]}  Rxb6 {[%clk 0:00:08]} 43. Rc2 {[%clk 0:00:01]}  Rbxb5 {[%clk 0:00:07]} 44. Rc7+ {[%clk 0:00:02]}  Kh6 {[%clk 0:00:07]} 45. axb5 {[%clk 0:00:02]}  Rxb5 {[%clk 0:00:08]} 46. Kg3 {[%clk 0:00:03]}  Rb3+ {[%clk 0:00:08]} 47. Kg2 {[%clk 0:00:03]}  Rb2+ {[%clk 0:00:08]} 48. Kg3 {[%clk 0:00:03]}  Rb5 {[%clk 0:00:08]} 49. Kg2 {[%clk 0:00:03]}  Rf5 {[%clk 0:00:08]} 50. Kg3 {[%clk 0:00:03]}  Rh5 {[%clk 0:00:09]} 51. Kg2 {[%clk 0:00:04]}  Kg5 {[%clk 0:00:09]} 52. Rc5+ {[%clk 0:00:04]}  Kh4 {[%clk 0:00:10]} 53. Rc4+ {[%clk 0:00:04]}  Kg5 {[%clk 0:00:10]} 54. Rc5+ {[%clk 0:00:05]}  Kh6 {[%clk 0:00:10]} 55. Rc6 {[%clk 0:00:05]}  Kg7 {[%clk 0:00:10]} 56. Rc7+ {[%clk 0:00:05]}  Kf6 {[%clk 0:00:11]} 57. Rc6+ {[%clk 0:00:06]}  Ke7 {[%clk 0:00:11]} 58. Rc7+ {[%clk 0:00:06]}  Kd6 {[%clk 0:00:12]} 59. Rg7 {[%clk 0:00:06]}  Ke6 {[%clk 0:00:10]} 60. Ra7 {[%clk 0:00:06]}  g5 {[%clk 0:00:11]} 61. Ra6+ {[%clk 0:00:06]}  Ke7 {[%clk 0:00:11]} 62. Kg3 {[%clk 0:00:06]}  Rh4 {[%clk 0:00:10]} 63. Ra5 {[%clk 0:00:05]}  h6 {[%clk 0:00:10]} 64. Ra7+ {[%clk 0:00:05]}  Kf6 {[%clk 0:00:10]} 65. Ra6+ {[%clk 0:00:06]}  Kg7 {[%clk 0:00:11]} 66. Ra7+ {[%clk 0:00:06]}  Kg6 {[%clk 0:00:12]} 67. Ra6+ {[%clk 0:00:06]}  Kh5 {[%clk 0:00:12]} 68. Ra5 {[%clk 0:00:07]}  Rb4 {[%clk 0:00:13]} 69. Ra3 {[%clk 0:00:07]}  Rb6 {[%clk 0:00:11]} 70. Rc3 {[%clk 0:00:06]}  Rf6 {[%clk 0:00:11]} 71. Ra3 {[%clk 0:00:07]}  Kg6 {[%clk 0:00:12]} 72. Rc3 {[%clk 0:00:07]}  h5 {[%clk 0:00:13]} 73. Ra3 {[%clk 0:00:04]}  Rb6 {[%clk 0:00:13]} 74. Rc3 {[%clk 0:00:04]}  h4+ {[%clk 0:00:13]} 75. Kg4 {[%clk 0:00:03]}  Rb4+ {[%clk 0:00:13]} 76. Kh3 {[%clk 0:00:03]}  Kh5 {[%clk 0:00:13]} 77. Rc5 {[%clk 0:00:03]}  Rb3+ {[%clk 0:00:13]} 78. Kg2 {[%clk 0:00:04]}  Rd3 {[%clk 0:00:13]} 79. Rb5 {[%clk 0:00:04]}  Rd4 {[%clk 0:00:13]} 80. Rb8 {[%clk 0:00:03]}  Rd3 {[%clk 0:00:13]} 81. Rb4 {[%clk 0:00:03]}  h3+ {[%clk 0:00:13]} 82. Kf2 {[%clk 0:00:03]}  Ra3 {[%clk 0:00:12]} 83. Rb8 {[%clk 0:00:02]}  Kg4 {[%clk 0:00:11]} 84. Rb4+ {[%clk 0:00:02]}  Kh5 {[%clk 0:00:11]} 85. Rb8 {[%clk 0:00:03]}  Kh4 {[%clk 0:00:12]} 86. Rh8+ {[%clk 0:00:02]}  Kg4 {[%clk 0:00:11]} 87. Rb8 {[%clk 0:00:03]}  Ra2+ {[%clk 0:00:12]} 88. Kg1 {[%clk 0:00:04]}  Rxh2 {[%clk 0:00:12]} 89. Kxh2 {[%clk 0:00:03]}  Kf3 {[%clk 0:00:02]} 90. Rg8 {[%clk 0:00:03]}  g4 {[%clk 0:00:02]} 91. Rf8+ {[%clk 0:00:03]}  Ke3 {[%clk 0:00:02]} 92. Kg3 {[%clk 0:00:04]} 1-0


[Site "https://www.chess.com"]

[Event "Titled Tuesday Blitz April 05 Early 2022"]
[White "Pinheiro, Iung Alicio de O."]
[Black "Namitbir Singh Walia"]
[WhiteFideId "2104350"]
[BlackFideId "35071068"]
[WhiteElo "2519"]
[BlackElo "1565"]
[Result "1-0"]
[Round "07"]
[TimeControl "180+1"]
[Date "2022.04.05"]
[WhiteClock "0:00:06"]
[BlackClock "0:00:05"]

1. c4 {[%clk 0:03:00]}  Nf6 {[%clk 0:02:56]} 2. g3 {[%clk 0:03:00]}  e6 {[%clk 0:02:56]} 3. Bg2 {[%clk 0:02:59]}  d5 {[%clk 0:02:56]} 4. Nf3 {[%clk 0:03:00]}  c6 {[%clk 0:02:55]} 5. b3 {[%clk 0:02:52]}  Nbd7 {[%clk 0:02:53]} 6. O-O {[%clk 0:02:52]}  Bd6 {[%clk 0:02:52]} 7. Bb2 {[%clk 0:02:51]}  O-O {[%clk 0:02:52]} 8. d4 {[%clk 0:02:51]}  b6 {[%clk 0:02:52]} 9. Nc3 {[%clk 0:02:51]}  Bb7 {[%clk 0:02:50]} 10. Nd2 {[%clk 0:02:52]}  c5 {[%clk 0:02:34]} 11. dxc5 {[%clk 0:02:46]}  Nxc5 {[%clk 0:02:34]} 12. Nb5 {[%clk 0:02:30]}  Bb8 {[%clk 0:02:33]} 13. b4 {[%clk 0:02:24]}  a6 {[%clk 0:01:58]} 14. Nd4 {[%clk 0:01:38]}  Ncd7 {[%clk 0:01:50]} 15. Rc1 {[%clk 0:01:35]}  Bd6 {[%clk 0:01:44]} 16. a3 {[%clk 0:01:32]}  Rc8 {[%clk 0:01:29]} 17. cxd5 {[%clk 0:01:28]}  exd5 {[%clk 0:01:27]} 18. N2f3 {[%clk 0:01:23]}  Ne4 {[%clk 0:01:21]} 19. Nf5 {[%clk 0:01:21]}  Ndf6 {[%clk 0:01:14]} 20. Nxd6 {[%clk 0:01:10]}  Qxd6 {[%clk 0:01:13]} 21. Qd4 {[%clk 0:01:10]}  h6 {[%clk 0:00:48]} 22. Ne5 {[%clk 0:00:54]}  Ng5 {[%clk 0:00:44]} 23. Nd3 {[%clk 0:00:51]}  Ne6 {[%clk 0:00:42]} 24. Qe5 {[%clk 0:00:50]}  Qe7 {[%clk 0:00:24]} 25. Nf4 {[%clk 0:00:46]}  Qd7 {[%clk 0:00:06]} 26. Bh3 {[%clk 0:00:33]}  Rfe8 {[%clk 0:00:04]} 27. Rxc8 {[%clk 0:00:28]}  Bxc8 {[%clk 0:00:02]} 28. Rd1 {[%clk 0:00:27]}  Qa4 {[%clk 0:00:02]} 29. Rd2 {[%clk 0:00:21]}  Nxf4 {[%clk 0:00:02]} 30. Qxf4 {[%clk 0:00:12]}  Bxh3 {[%clk 0:00:03]} 31. Bxf6 {[%clk 0:00:12]}  gxf6 {[%clk 0:00:02]} 32. Qxh6 {[%clk 0:00:11]}  Be6 {[%clk 0:00:01]} 33. Qxf6 {[%clk 0:00:09]}  Qb3 {[%clk 0:00:01]} 34. Qg5+ {[%clk 0:00:08]}  Kf8 {[%clk 0:00:02]} 35. Qh6+ {[%clk 0:00:08]}  Ke7 {[%clk 0:00:02]} 36. Rd3 {[%clk 0:00:07]}  Qb1+ {[%clk 0:00:02]} 37. Kg2 {[%clk 0:00:08]}  Qc2 {[%clk 0:00:01]} 38. Qg5+ {[%clk 0:00:08]}  Kd7 {[%clk 0:00:01]} 39. Qe3 {[%clk 0:00:08]}  Kc7 {[%clk 0:00:01]} 40. Rc3+ {[%clk 0:00:08]}  Qxc3 {[%clk 0:00:01]} 41. Qxc3+ {[%clk 0:00:09]}  Kb7 {[%clk 0:00:02]} 42. Qd4 {[%clk 0:00:09]}  Rc8 {[%clk 0:00:03]} 43. h4 {[%clk 0:00:07]}  Rc4 {[%clk 0:00:04]} 44. Qd3 {[%clk 0:00:07]}  Re4 {[%clk 0:00:05]} 45. f3 {[%clk 0:00:06]}  Re5 {[%clk 0:00:05]} 46. Kf2 {[%clk 0:00:07]}  Bf5 {[%clk 0:00:05]} 47. Qd4 {[%clk 0:00:07]}  f6 {[%clk 0:00:05]} 48. Qf4 {[%clk 0:00:06]} 1-0


[Site "https://www.chess.com"]

[Event "Titled Tuesday Blitz April 05 Early 2022"]
[White "Przybylski, Wojciech"]
[Black "Kosteniuk, Alexandra"]
[WhiteFideId "1117599"]
[BlackFideId "4128125"]
[WhiteElo "2133"]
[BlackElo "2469"]
[Result "1-0"]
[Round "07"]
[TimeControl "180+1"]
[Date "2022.04.05"]
[WhiteClock "0:00:03"]
[BlackClock "0:00:02"]

1. e4 {[%clk 0:03:00]}  c6 {[%clk 0:03:00]} 2. Nc3 {[%clk 0:02:59]}  d5 {[%clk 0:03:00]} 3. Nf3 {[%clk 0:02:58]}  dxe4 {[%clk 0:03:00]} 4. Nxe4 {[%clk 0:02:57]}  Nf6 {[%clk 0:03:01]} 5. Nc3 {[%clk 0:02:57]}  c5 {[%clk 0:02:54]} 6. d4 {[%clk 0:02:54]}  cxd4 {[%clk 0:02:49]} 7. Qxd4 {[%clk 0:02:52]}  Qa5 {[%clk 0:02:24]} 8. Bd2 {[%clk 0:02:44]}  Nc6 {[%clk 0:02:23]} 9. Bb5 {[%clk 0:02:42]}  Bd7 {[%clk 0:02:16]} 10. Qa4 {[%clk 0:02:25]}  Qxa4 {[%clk 0:02:13]} 11. Bxa4 {[%clk 0:02:24]}  O-O-O {[%clk 0:02:02]} 12. O-O-O {[%clk 0:02:23]}  e6 {[%clk 0:01:50]} 13. Ng5 {[%clk 0:02:19]}  Be8 {[%clk 0:01:49]} 14. Bf4 {[%clk 0:02:05]}  h6 {[%clk 0:01:23]} 15. Nge4 {[%clk 0:02:02]}  Nd5 {[%clk 0:01:20]} 16. Nxd5 {[%clk 0:01:45]}  exd5 {[%clk 0:01:20]} 17. Nc3 {[%clk 0:01:44]}  d4 {[%clk 0:01:14]} 18. Ne2 {[%clk 0:01:41]}  f6 {[%clk 0:01:08]} 19. f3 {[%clk 0:01:35]}  Bc5 {[%clk 0:01:07]} 20. Bb3 {[%clk 0:01:31]}  Bd7 {[%clk 0:01:04]} 21. Ng3 {[%clk 0:01:20]}  f5 {[%clk 0:01:04]} 22. Rhe1 {[%clk 0:01:16]}  g5 {[%clk 0:01:02]} 23. Be5 {[%clk 0:01:01]}  Nxe5 {[%clk 0:00:48]} 24. Rxe5 {[%clk 0:01:00]}  Bd6 {[%clk 0:00:48]} 25. Rd5 {[%clk 0:00:56]}  Bf4+ {[%clk 0:00:45]} 26. Kb1 {[%clk 0:00:56]}  Bc6 {[%clk 0:00:32]} 27. R5xd4 {[%clk 0:00:37]}  Rxd4 {[%clk 0:00:32]} 28. Rxd4 {[%clk 0:00:37]}  Re8 {[%clk 0:00:33]} 29. a4 {[%clk 0:00:21]}  Re5 {[%clk 0:00:27]} 30. Nxf5 {[%clk 0:00:20]}  Bxh2 {[%clk 0:00:20]} 31. Nxh6 {[%clk 0:00:18]}  Re1+ {[%clk 0:00:19]} 32. Ka2 {[%clk 0:00:18]}  Bf4 {[%clk 0:00:19]} 33. Nf5 {[%clk 0:00:16]}  Re2 {[%clk 0:00:18]} 34. g3 {[%clk 0:00:16]}  Bd2 {[%clk 0:00:18]} 35. Bc4 {[%clk 0:00:14]}  Rf2 {[%clk 0:00:17]} 36. Ne7+ {[%clk 0:00:13]}  Kc7 {[%clk 0:00:17]} 37. Nd5+ {[%clk 0:00:12]}  Bxd5 {[%clk 0:00:17]} 38. Bxd5 {[%clk 0:00:13]}  Ba5 {[%clk 0:00:13]} 39. Be4 {[%clk 0:00:12]}  Bb6 {[%clk 0:00:11]} 40. Rc4+ {[%clk 0:00:12]}  Kb8 {[%clk 0:00:12]} 41. g4 {[%clk 0:00:11]}  Rd2 {[%clk 0:00:11]} 42. Rb4 {[%clk 0:00:10]}  Kc7 {[%clk 0:00:11]} 43. a5 {[%clk 0:00:10]}  Bxa5 {[%clk 0:00:09]} 44. Rxb7+ {[%clk 0:00:10]}  Kd6 {[%clk 0:00:09]} 45. Rxa7 {[%clk 0:00:10]}  Bc7 {[%clk 0:00:09]} 46. Ra6+ {[%clk 0:00:10]}  Kd7 {[%clk 0:00:09]} 47. Rg6 {[%clk 0:00:09]}  Bf4 {[%clk 0:00:09]} 48. Kb3 {[%clk 0:00:09]}  Kc7 {[%clk 0:00:09]} 49. Rg7+ {[%clk 0:00:09]}  Kb6 {[%clk 0:00:09]} 50. Rb7+ {[%clk 0:00:08]}  Kc5 {[%clk 0:00:08]} 51. Ra7 {[%clk 0:00:08]}  Rf2 {[%clk 0:00:08]} 52. Ra5+ {[%clk 0:00:08]}  Kb6 {[%clk 0:00:08]} 53. Rd5 {[%clk 0:00:07]}  Rf1 {[%clk 0:00:07]} 54. c3 {[%clk 0:00:07]}  Rf2 {[%clk 0:00:07]} 55. Rd1 {[%clk 0:00:05]}  Be3 {[%clk 0:00:06]} 56. Ka3 {[%clk 0:00:05]}  Bf4 {[%clk 0:00:06]} 57. b4 {[%clk 0:00:05]}  Be5 {[%clk 0:00:05]} 58. Kb3 {[%clk 0:00:05]}  Re2 {[%clk 0:00:05]} 59. Rc1 {[%clk 0:00:05]}  Bf4 {[%clk 0:00:05]} 60. Rc2 {[%clk 0:00:05]}  Re3 {[%clk 0:00:06]} 61. Kb2 {[%clk 0:00:05]}  Re1 {[%clk 0:00:05]} 62. Kb3 {[%clk 0:00:04]}  Re3 {[%clk 0:00:05]} 63. Kc4 {[%clk 0:00:04]}  Be5 {[%clk 0:00:05]} 64. Rc1 {[%clk 0:00:04]}  Bf6 {[%clk 0:00:04]} 65. Kb3 {[%clk 0:00:04]}  Be5 {[%clk 0:00:04]} 66. Rc2 {[%clk 0:00:04]}  Bf6 {[%clk 0:00:05]} 67. Kc4 {[%clk 0:00:03]}  Be5 {[%clk 0:00:05]} 68. Kd5 {[%clk 0:00:04]}  Bxc3 {[%clk 0:00:05]} 69. b5 {[%clk 0:00:03]}  Ka5 {[%clk 0:00:03]} 70. Ke6 {[%clk 0:00:03]}  Bd4 {[%clk 0:00:04]} 71. Kf5 {[%clk 0:00:03]}  Rb3 {[%clk 0:00:03]} 72. Rd2 {[%clk 0:00:03]}  Be3 {[%clk 0:00:03]} 73. Rd5 {[%clk 0:00:03]}  Bf4 {[%clk 0:00:03]} 74. Rd7 {[%clk 0:00:03]}  Kb6 {[%clk 0:00:04]} 75. Kg6 {[%clk 0:00:03]}  Kxb5 {[%clk 0:00:03]} 76. Rb7+ {[%clk 0:00:02]}  Kc4 {[%clk 0:00:03]} 77. Bd5+ {[%clk 0:00:03]}  Kxd5 {[%clk 0:00:03]} 78. Rxb3 {[%clk 0:00:03]}  Ke5 {[%clk 0:00:04]} 79. Ra3 {[%clk 0:00:03]}  Ke6 {[%clk 0:00:04]} 80. Ra4 {[%clk 0:00:03]}  Bd2 {[%clk 0:00:03]} 81. Rc4 {[%clk 0:00:03]}  Kd5 {[%clk 0:00:02]} 82. Ra4 {[%clk 0:00:02]}  Ke6 {[%clk 0:00:02]} 83. Ra3 {[%clk 0:00:03]}  Bf4 {[%clk 0:00:02]} 84. Ra5 {[%clk 0:00:03]}  Bd2 {[%clk 0:00:02]} 85. Rxg5 {[%clk 0:00:03]} 1-0


[Site "https://www.chess.com"]

[Event "Titled Tuesday Blitz April 05 Early 2022"]
[White "Reprintsev, Alexander"]
[Black "Ilyasli, Ughur"]
[WhiteFideId "14100541"]
[BlackFideId "13416197"]
[WhiteElo "2108"]
[BlackElo "2045"]
[Result "1-0"]
[Round "07"]
[TimeControl "180+1"]
[Date "2022.04.05"]
[WhiteClock "0:01:46"]
[BlackClock "0:00:01"]

1. e4 {[%clk 0:02:53]}  c5 {[%clk 0:02:59]} 2. b3 {[%clk 0:02:53]}  g6 {[%clk 0:02:55]} 3. Bb2 {[%clk 0:02:53]}  Nf6 {[%clk 0:02:55]} 4. e5 {[%clk 0:02:53]}  Nd5 {[%clk 0:02:55]} 5. Nc3 {[%clk 0:02:53]}  Nxc3 {[%clk 0:02:39]} 6. dxc3 {[%clk 0:02:53]}  Bg7 {[%clk 0:02:39]} 7. Qd5 {[%clk 0:02:52]}  Qc7 {[%clk 0:02:33]} 8. Nf3 {[%clk 0:02:46]}  e6 {[%clk 0:02:27]} 9. Qe4 {[%clk 0:02:38]}  Nc6 {[%clk 0:02:20]} 10. c4 {[%clk 0:02:38]}  d5 {[%clk 0:02:05]} 11. cxd5 {[%clk 0:02:28]}  exd5 {[%clk 0:02:04]} 12. Qxd5 {[%clk 0:02:28]}  O-O {[%clk 0:02:01]} 13. O-O-O {[%clk 0:02:27]}  Bg4 {[%clk 0:01:34]} 14. Qxc5 {[%clk 0:02:25]}  Rac8 {[%clk 0:01:16]} 15. Bc4 {[%clk 0:02:23]}  Bxf3 {[%clk 0:00:51]} 16. gxf3 {[%clk 0:02:21]}  Nxe5 {[%clk 0:00:51]} 17. Qxc7 {[%clk 0:02:19]}  Rxc7 {[%clk 0:00:52]} 18. Bd5 {[%clk 0:02:18]}  Rfc8 {[%clk 0:00:49]} 19. c4 {[%clk 0:02:07]}  b5 {[%clk 0:00:49]} 20. f4 {[%clk 0:01:59]}  Ng4 {[%clk 0:00:20]} 21. Bxg7 {[%clk 0:01:53]}  Kxg7 {[%clk 0:00:20]} 22. Rd2 {[%clk 0:01:53]}  Nf6 {[%clk 0:00:16]} 23. Kb2 {[%clk 0:01:53]}  bxc4 {[%clk 0:00:07]} 24. Bxc4 {[%clk 0:01:52]}  Nh5 {[%clk 0:00:07]} 25. f5 {[%clk 0:01:52]}  gxf5 {[%clk 0:00:06]} 26. Rg1+ {[%clk 0:01:49]}  Kf6 {[%clk 0:00:06]} 27. Rd6+ {[%clk 0:01:49]}  Ke5 {[%clk 0:00:06]} 28. Rh6 {[%clk 0:01:49]}  Nf4 {[%clk 0:00:05]} 29. Rxh7 {[%clk 0:01:49]}  Rd8 {[%clk 0:00:05]} 30. Re1+ {[%clk 0:01:48]}  Kd4 {[%clk 0:00:02]} 31. Rd1+ {[%clk 0:01:47]}  Ke5 {[%clk 0:00:01]} 32. Rxd8 {[%clk 0:01:47]}  Ne6 {[%clk 0:00:01]} 33. Bxe6 {[%clk 0:01:46]} 1-0


[Site "https://www.chess.com"]

[Event "Titled Tuesday Blitz April 05 Early 2022"]
[White "Ronka, Erik"]
[Black "Kaminski, Victor"]
[WhiteFideId "505080"]
[BlackFideId "1131630"]
[WhiteElo "2264"]
[BlackElo "2181"]
[Result "0-1"]
[Round "07"]
[TimeControl "180+1"]
[Date "2022.04.05"]
[WhiteClock "0:00:02"]
[BlackClock "0:00:21"]

1. e4 {[%clk 0:03:00]}  e5 {[%clk 0:02:56]} 2. Bc4 {[%clk 0:03:00]}  Nf6 {[%clk 0:02:55]} 3. d3 {[%clk 0:03:00]}  Bc5 {[%clk 0:02:55]} 4. Nc3 {[%clk 0:02:58]}  d6 {[%clk 0:02:55]} 5. f4 {[%clk 0:02:57]}  exf4 {[%clk 0:02:54]} 6. Bxf4 {[%clk 0:02:53]}  O-O {[%clk 0:02:53]} 7. Nf3 {[%clk 0:02:50]}  Bg4 {[%clk 0:02:47]} 8. d4 {[%clk 0:02:26]}  Bb4 {[%clk 0:02:46]} 9. O-O {[%clk 0:01:46]}  Bxc3 {[%clk 0:02:41]} 10. bxc3 {[%clk 0:01:47]}  Nxe4 {[%clk 0:02:42]} 11. Bd3 {[%clk 0:01:21]}  Nxc3 {[%clk 0:02:36]} 12. Qe1 {[%clk 0:01:22]}  Nd5 {[%clk 0:02:34]} 13. Bd2 {[%clk 0:01:21]}  Re8 {[%clk 0:02:31]} 14. Qg3 {[%clk 0:01:15]}  Bh5 {[%clk 0:02:26]} 15. Ng5 {[%clk 0:01:11]}  Nf6 {[%clk 0:02:22]} 16. c4 {[%clk 0:00:54]}  Bg6 {[%clk 0:02:19]} 17. Bc3 {[%clk 0:00:52]}  d5 {[%clk 0:02:11]} 18. Bxg6 {[%clk 0:00:51]}  hxg6 {[%clk 0:02:09]} 19. Qh4 {[%clk 0:00:47]}  Nbd7 {[%clk 0:01:59]} 20. cxd5 {[%clk 0:00:46]}  Nf8 {[%clk 0:01:52]} 21. Rad1 {[%clk 0:00:33]}  Qxd5 {[%clk 0:01:47]} 22. Kh1 {[%clk 0:00:29]}  Ne4 {[%clk 0:01:38]} 23. Nxf7 {[%clk 0:00:24]}  Nf6 {[%clk 0:01:26]} 24. Ne5 {[%clk 0:00:19]}  Qe4 {[%clk 0:01:05]} 25. Rf4 {[%clk 0:00:18]}  Qc2 {[%clk 0:01:00]} 26. Rdf1 {[%clk 0:00:12]}  N8h7 {[%clk 0:00:45]} 27. Be1 {[%clk 0:00:11]}  g5 {[%clk 0:00:45]} 28. Qf2 {[%clk 0:00:10]}  Qxf2 {[%clk 0:00:37]} 29. R4xf2 {[%clk 0:00:11]}  Rad8 {[%clk 0:00:37]} 30. Bc3 {[%clk 0:00:10]}  Ne4 {[%clk 0:00:37]} 31. Rc2 {[%clk 0:00:10]}  Rf8 {[%clk 0:00:33]} 32. Rxf8+ {[%clk 0:00:07]}  Rxf8 {[%clk 0:00:34]} 33. Kg1 {[%clk 0:00:07]}  c6 {[%clk 0:00:34]} 34. Be1 {[%clk 0:00:07]}  Nhf6 {[%clk 0:00:33]} 35. Nf3 {[%clk 0:00:06]}  Nd5 {[%clk 0:00:33]} 36. Re2 {[%clk 0:00:05]}  g4 {[%clk 0:00:29]} 37. Ne5 {[%clk 0:00:05]}  Nd6 {[%clk 0:00:24]} 38. h3 {[%clk 0:00:05]}  gxh3 {[%clk 0:00:24]} 39. gxh3 {[%clk 0:00:06]}  Nf5 {[%clk 0:00:24]} 40. Rg2 {[%clk 0:00:05]}  Nxd4 {[%clk 0:00:22]} 41. Bh4 {[%clk 0:00:04]}  Nf3+ {[%clk 0:00:21]} 42. Nxf3 {[%clk 0:00:05]}  Rxf3 {[%clk 0:00:21]} 43. Kh2 {[%clk 0:00:04]}  Nf4 {[%clk 0:00:22]} 44. Rd2 {[%clk 0:00:02]}  Rxh3+ {[%clk 0:00:21]} 0-1


[Site "https://www.chess.com"]

[Event "Titled Tuesday Blitz April 05 Early 2022"]
[White "Rottenwohrer Suarez, Juan"]
[Black "Mkrtchyan, Mariam"]
[WhiteFideId "32068182"]
[BlackFideId "13310828"]
[WhiteElo "2158"]
[BlackElo "1984"]
[Result "0-1"]
[Round "07"]
[TimeControl "180+1"]
[Date "2022.04.05"]
[WhiteClock "0:00:41"]
[BlackClock "0:00:33"]

1. d4 {[%clk 0:03:00]}  d5 {[%clk 0:02:57]} 2. c4 {[%clk 0:03:01]}  c6 {[%clk 0:02:56]} 3. Nf3 {[%clk 0:03:01]}  Nf6 {[%clk 0:02:55]} 4. Nc3 {[%clk 0:03:01]}  dxc4 {[%clk 0:02:52]} 5. a4 {[%clk 0:03:01]}  Bf5 {[%clk 0:02:50]} 6. Ne5 {[%clk 0:03:01]}  Nbd7 {[%clk 0:02:40]} 7. Nxc4 {[%clk 0:03:01]}  Qc7 {[%clk 0:02:39]} 8. g3 {[%clk 0:03:01]}  e5 {[%clk 0:02:36]} 9. dxe5 {[%clk 0:03:02]}  Nxe5 {[%clk 0:02:35]} 10. Bf4 {[%clk 0:03:03]}  Nfd7 {[%clk 0:02:35]} 11. Bg2 {[%clk 0:03:03]}  g5 {[%clk 0:02:14]} 12. Bxe5 {[%clk 0:03:01]}  Nxe5 {[%clk 0:02:12]} 13. Qd4 {[%clk 0:03:02]}  f6 {[%clk 0:02:08]} 14. h4 {[%clk 0:02:57]}  Nxc4 {[%clk 0:01:58]} 15. Qxc4 {[%clk 0:02:34]}  O-O-O {[%clk 0:01:58]} 16. Be4 {[%clk 0:02:31]}  Bxe4 {[%clk 0:01:47]} 17. Qxe4 {[%clk 0:02:27]}  Kb8 {[%clk 0:01:45]} 18. Rd1 {[%clk 0:02:21]}  Bd6 {[%clk 0:01:35]} 19. Qf5 {[%clk 0:02:15]}  Qb6 {[%clk 0:01:25]} 20. Kf1 {[%clk 0:02:11]}  Qxb2 {[%clk 0:01:22]} 21. Ne4 {[%clk 0:02:10]}  Qe5 {[%clk 0:01:20]} 22. Qxe5 {[%clk 0:01:45]}  Bxe5 {[%clk 0:01:18]} 23. Rxd8+ {[%clk 0:01:45]}  Rxd8 {[%clk 0:01:17]} 24. hxg5 {[%clk 0:01:46]}  Rd1+ {[%clk 0:01:06]} 25. Kg2 {[%clk 0:01:46]}  Rxh1 {[%clk 0:01:04]} 26. Kxh1 {[%clk 0:01:47]}  fxg5 {[%clk 0:00:59]} 27. Nxg5 {[%clk 0:01:45]}  b5 {[%clk 0:00:56]} 28. axb5 {[%clk 0:00:52]}  cxb5 {[%clk 0:00:56]} 29. f4 {[%clk 0:00:53]}  Bh8 {[%clk 0:00:45]} 30. Nf7 {[%clk 0:00:41]}  b4 {[%clk 0:00:33]} 0-1


[Site "https://www.chess.com"]